bitfinex-derivatives/quotes_ETHF0:USTF0_20250918
["timestamp","ask_amount","ask_price","bid_price","bid_amount"]
[1758167564064,4.88182681,4618.1,4618.0,0.8216]
[1758167567165,3.73317348,4618.1,4618.0,0.8216]
[1758167567864,3.2078,4618.1,4618.0,0.8216]
[1758167568073,3.4278,4618.1,4618.0,0.8216]
[1758167568669,3.2078,4618.1,4618.0,0.8216]
[1758167568870,3.4278,4618.1,4618.0,0.8216]
[1758167569768,3.2078,4618.1,4618.0,0.8216]
[1758167569967,3.4278,4618.1,4618.0,0.8216]
[1758167570568,3.95447252,4618.1,4618.0,0.8216]
[1758167570969,3.4278,4618.1,4618.0,0.8216]
[1758167571163,3.2078,4618.1,4618.0,0.8216]
[1758167572169,3.2078,4618.1,4618.0,4.8216]
[1758167573570,0.22,4618.3,4618.2,0.4115]
[1758167573771,0.22,4618.3,4618.2,0.7204]
[1758167575172,0.22,4618.3,4618.0,0.1201]
[1758167575173,3.2078,4618.6,4618.5,0.847]
[1758167575368,3.95411222,4618.6,4618.5,0.847]
[1758167575773,3.73411222,4618.6,4618.5,0.847]
[1758167575963,3.95411222,4618.6,4618.5,0.847]
[1758167577276,3.4278,4618.6,4618.5,0.847]
[1758167577480,3.95403538,4618.6,4618.5,0.847]
[1758167578176,3.4278,4618.6,4618.5,0.847]
[1758167582979,3.2078,4618.6,4618.5,0.847]
[1758167583180,3.4278,4618.6,4618.5,0.847]
[1758167583573,3.2078,4618.6,4618.5,0.847]
[1758167583772,3.2078,4618.6,4618.5,1.77565333]
[1758167585582,3.2078,4619.5,4618.5,5.77565333]
[1758167585785,0.74502026,4619.4,4619.3,0.6844]
[1758167586088,0.22,4619.4,4619.3,0.6844]
[1758167588392,0.74464514,4619.4,4619.3,0.2883]
[1758167589196,0.74464514,4619.4,4619.3,0.491]
[1758167590285,4.13645333,4619.5,4619.4,0.491]
[1758167590490,4.88105089,4619.5,4619.4,0.491]
[1758167591285,3.2078,4619.5,4619.4,0.6844]
[1758167591595,3.4278,4619.5,4619.4,0.6844]
[1758167591997,3.2078,4620.0,4619.6,0.2883]
[1758167592189,3.2078,4620.0,4619.9,1.61305333]
[1758167592492,3.2078,4620.0,4619.9,0.6844]
[1758167595199,3.4278,4620.0,4619.9,0.6844]
[1758167595893,4.13645333,4620.5,4620.0,0.4068]
[1758167596101,4.13645333,4620.5,4620.4,0.2027]
[1758167596395,3.4278,4620.5,4620.4,0.491]
[1758167596595,3.4278,4620.5,4620.4,0.2883]
[1758167599100,4.35645333,4620.5,4620.4,0.2883]
[1758167600802,4.35645333,4620.5,4620.1,0.2883]
[1758167601003,0.92865333,4620.2,4620.1,0.2883]
[1758167601198,1.14865333,4620.2,4619.8,0.2883]
[1758167601402,0.92865333,4619.9,4619.8,0.2883]
[1758167601704,1.14865333,4619.9,4619.8,0.2883]
[1758167602404,1.14865333,4619.9,4619.8,0.491]
[1758167602605,1.14865333,4619.9,4619.8,0.2883]
[1758167605000,1.14865333,4619.9,4619.6,0.0216]
[1758167605204,0.92865333,4619.7,4619.6,0.3099]
[1758167605507,1.14865333,4619.7,4619.6,0.3099]
[1758167606297,0.92865333,4619.7,4619.6,0.5126]
[1758167606605,1.14865333,4619.7,4619.6,0.5126]
[1758167609814,0.97616306,4619.7,4619.6,0.5126]
[1758167612113,0.75616306,4619.7,4619.6,0.706]
[1758167612412,0.75616306,4620.1,4620.0,0.3212]
[1758167612601,0.97616306,4620.1,4620.0,0.6095]
[1758167613211,1.50072756,4620.1,4620.0,0.6095]
[1758167614214,1.28072756,4620.1,4620.0,0.6095]
[1758167614414,1.50072756,4620.1,4620.0,0.6095]
[1758167616008,1.50072756,4620.1,4620.0,0.4068]
[1758167616712,2.25689062,4620.1,4620.0,0.4068]
[1758167616905,1.50072756,4620.1,4620.0,0.4068]
[1758167620511,1.28072756,4620.1,4620.0,0.4068]
[1758167620810,1.50072756,4620.1,4620.0,0.4068]
[1758167621115,1.67741977,4620.1,4620.0,0.4068]
[1758167621718,1.50072756,4620.1,4620.0,0.4068]
[1758167622011,1.72060637,4620.1,4620.0,0.4068]
[1758167623618,1.89741372,4620.1,4620.0,0.4068]
[1758167625319,2.65357678,4620.1,4620.0,0.4068]
[1758167627219,1.89741372,4620.1,4620.0,0.4068]
[1758167627613,2.65357678,4620.1,4619.9,0.3173]
[1758167627922,3.95224331,4620.0,4619.9,0.3173]
[1758167630920,4.70840637,4620.0,4619.9,0.3173]
[1758167631121,3.95224331,4620.0,4619.9,0.3173]
[1758167631322,3.95224331,4620.0,4619.9,0.5196]
[1758167632224,4.17224331,4620.0,4619.9,0.5196]
[1758167633121,3.95224331,4620.0,4619.9,0.5196]
[1758167633317,4.17224331,4620.0,4619.9,0.5196]
[1758167633518,3.95224331,4620.0,4619.9,0.5196]
[1758167633719,4.17224331,4620.0,4619.9,0.5196]
[1758167636118,3.95224331,4620.0,4619.9,0.7169]
[1758167636315,4.92840637,4620.0,4619.9,0.7169]
[1758167637922,4.92820313,4620.0,4619.9,0.7169]
[1758167639222,4.92820414,4620.0,4619.9,0.7169]
[1758167640429,4.92820414,4620.0,4619.9,0.5196]
[1758167640629,5.6843672,4620.0,4619.9,0.3173]
[1758167640830,4.92820414,4620.0,4619.9,0.3173]
[1758167641933,4.70820414,4620.0,4619.9,0.3173]
[1758167642128,4.92820414,4620.0,4619.9,0.5248]
[1758167642628,5.6843672,4620.0,4619.9,0.3173]
[1758167651838,5.85522341,4620.0,4619.9,0.3173]
[1758167652140,5.85515261,4620.0,4619.9,0.3173]
[1758167653140,5.6842964,4620.0,4619.9,0.5122]
[1758167653543,5.4642964,4620.0,4619.9,0.5122]
[1758167653738,4.70813334,4620.0,4619.9,0.5122]
[1758167653938,5.6842964,4620.0,4619.9,0.5122]
[1758167654140,4.17197028,4620.0,4619.9,0.7069]
[1758167654333,4.48852756,4620.0,4619.9,0.7069]
[1758167654840,3.7323645,4620.0,4619.9,0.7069]
[1758167655136,3.2078,4620.5,4619.9,4.7069]
[1758167655338,3.2078,4620.5,4619.7,0.0317]
[1758167655339,0.7458799,4620.4,4620.3,0.6897]
[1758167655842,0.5258799,4620.4,4620.3,0.6897]
[1758167656045,0.7458799,4620.4,4620.3,0.6897]
[1758167656241,0.22,4620.4,4620.3,0.6897]
[1758167663344,3.96396306,4620.5,4620.4,0.495]
[1758167663549,4.18396306,4620.5,4620.4,0.6897]
[1758167663850,3.96396306,4620.5,4620.4,0.6897]
[1758167664253,4.18296306,4620.5,4620.4,0.6897]
[1758167668554,3.96396306,4620.5,4620.4,0.6897]
[1758167668747,4.18296306,4620.5,4620.4,0.6897]
[1758167671855,4.35447991,4620.5,4620.4,0.6897]
[1758167677462,4.13547991,4620.5,4620.4,0.6897]
[1758167677656,3.2078,4620.5,4620.4,0.6897]
[1758167677960,0.219,4620.5,4620.4,0.6897]
[1758167678361,0.92767991,4620.9,4620.4,0.6897]
[1758167678560,0.92767991,4620.9,4620.8,0.7153]
[1758167678762,1.14667991,4620.9,4620.8,0.7153]
[1758167679263,1.67228565,4620.9,4620.8,0.7153]
[1758167679964,1.45328565,4620.9,4620.8,0.7153]
[1758167680162,1.67228565,4620.9,4620.8,0.7153]
[1758167680865,1.45328565,4620.9,4620.8,0.7153]
[1758167681166,1.67228565,4620.9,4620.8,0.7153]
[1758167681466,0.74460574,4620.9,4620.8,0.7153]
[1758167681858,0.52560574,4620.9,4620.8,0.7153]
[1758167682062,0.74460574,4620.9,4620.8,0.7153]
[1758167682664,0.52560574,4620.9,4620.8,0.7153]
[1758167682861,0.219,4620.9,4620.8,0.7153]
[1758167683662,3.2078,4621.0,4620.9,0.3103]
[1758167683965,3.2078,4621.0,4620.9,0.7153]
[1758167686774,3.2078,4621.0,4620.9,0.3103]
[1758167689175,3.2078,4621.0,4620.9,0.5118]
[1758167690778,3.73602203,4621.0,4620.9,0.5118]
[1758167691283,3.2078,4621.0,4620.9,0.5118]
[1758167692580,3.2078,4621.0,4620.7,0.1251]
[1758167692581,3.73601862,4621.0,4620.7,0.1251]
[1758167692784,0.92767991,4620.8,4620.7,0.4354]
[1758167692985,1.45581842,4620.8,4620.7,0.4354]
[1758167693585,0.52813851,4620.8,4620.7,0.6369]
[1758167693886,1.45581842,4620.8,4620.7,0.4354]
[1758167696488,1.45581842,4620.8,4620.5,0.3319]
[1758167696489,1.67636975,4620.8,4620.5,0.3319]
[1758167696684,0.96768984,4620.7,4620.5,0.4579]
[1758167696886,0.74868984,4620.6,4620.5,0.4579]
[1758167698490,0.74868984,4620.6,4620.5,0.6594]
[1758167698998,0.74868984,4620.6,4620.5,0.4579]
[1758167701190,0.74868984,4620.6,4620.5,0.6634]
[1758167701488,1.89536975,4620.6,4620.5,0.6634]
[1758167703492,1.67636975,4620.6,4620.5,0.6634]
[1758167703693,1.89536975,4620.6,4620.5,0.6634]
[1758167704399,1.89536975,4620.6,4620.5,0.4579]
[1758167705290,0.74713851,4620.6,4620.5,0.8646]
[1758167705490,1.67481842,4620.6,4620.5,0.8646]
[1758167707586,1.67481842,4620.6,4620.5,0.6634]
[1758167709397,1.67481842,4620.6,4620.5,0.8624]
[1758167710995,1.45581842,4620.6,4620.5,0.8624]
[1758167711195,1.67481842,4620.6,4620.5,0.8624]
[1758167711588,0.52813851,4620.6,4620.5,0.8624]
[1758167711788,0.219,4620.6,4620.5,0.8624]
[1758167712293,3.2078,4621.0,4620.5,0.5521]
[1758167712596,0.74724727,4620.9,4620.8,0.7115]
[1758167712790,0.219,4620.9,4620.8,0.7115]
[1758167713187,1.14667991,4620.9,4620.8,0.7115]
[1758167713596,3.2078,4621.0,4620.8,0.4058]
[1758167713795,3.2078,4621.0,4620.9,0.7115]
[1758167713996,3.4268,4621.0,4620.9,0.7115]
[1758167718109,3.2078,4621.0,4620.9,0.7115]
[1758167718308,3.2078,4621.5,4621.4,0.7115]
[1758167718599,3.2078,4621.5,4621.4,1.63917991]
[1758167718806,3.2078,4621.5,4621.4,0.7115]
[1758167720108,3.4268,4621.5,4621.4,0.7115]
[1758167725908,3.4268,4621.5,4621.4,0.5125]
[1758167726106,3.2078,4621.5,4621.3,0.3057]
[1758167726309,0.219,4621.4,4621.3,0.4058]
[1758167727012,0.219,4621.4,4621.3,0.7115]
[1758167730920,0.219,4621.4,4621.3,0.5125]
[1758167731819,0.97467859,4621.4,4621.3,0.5125]
[1758167732928,0.97467859,4621.4,4621.3,0.7115]
[1758167735330,0.97467859,4621.4,4621.3,0.5125]
[1758167736225,0.97467859,4621.4,4621.3,0.7115]
[1758167739232,0.219,4621.4,4621.3,1.16147859]
[1758167739732,3.2078,4622.0,4621.9,0.6991]
[1758167739934,3.95681214,4622.0,4621.9,0.6991]
[1758167740925,4.71249073,4622.0,4621.9,0.6991]
[1758167741123,4.92932148,4622.0,4621.9,0.6991]
[1758167744931,4.92932148,4622.0,4621.9,0.5038]
[1758167746436,4.92938445,4622.0,4621.9,0.5038]
[1758167747232,4.9299978,4622.0,4621.9,0.293]
[1758167748335,4.17431921,4622.0,4621.9,0.293]
[1758167748537,4.9299978,4622.0,4621.9,0.293]
[1758167749640,4.17431921,4622.0,4621.9,0.293]
[1758167749836,4.9299978,4622.0,4621.9,0.293]
[1758167750543,4.7109978,4622.0,4621.9,0.293]
[1758167750843,4.9299978,4622.0,4621.9,0.293]
[1758167752445,4.71310408,4622.0,4621.9,0.293]
[1758167752747,4.93155286,4622.0,4621.9,0.293]
[1758167753244,4.71310408,4622.0,4621.9,0.293]
[1758167754745,4.71310408,4622.0,4621.9,0.5038]
[1758167754947,4.71310408,4622.0,4621.9,0.6991]
[1758167756048,4.49410408,4622.0,4621.9,0.6991]
[1758167756248,4.71310408,4622.0,4621.9,0.6991]
[1758167757244,4.93140374,4622.0,4621.9,0.6991]
[1758167757445,4.71240374,4622.0,4621.9,0.6991]
[1758167757748,4.93140374,4622.0,4621.9,0.6991]
[1758167757949,4.93140379,4622.0,4621.9,0.6991]
[1758167760847,4.71240379,4622.0,4621.9,0.6991]
[1758167761153,4.93140379,4622.0,4621.9,0.6991]
[1758167761652,4.71240379,4622.0,4621.9,0.6991]
[1758167761951,4.93140379,4622.0,4621.9,0.6991]
[1758167762251,4.71240379,4622.0,4621.9,0.6991]
[1758167762443,4.93140379,4622.0,4621.9,0.6991]
[1758167764048,4.93140379,4622.0,4621.9,0.293]
[1758167765449,4.71310408,4622.0,4621.9,0.293]
[1758167765648,4.93111681,4622.0,4621.9,0.293]
[1758167766151,5.10698952,4622.0,4621.9,0.293]
[1758167766460,4.93111681,4622.0,4621.9,0.7]
[1758167767053,4.71211681,4622.0,4621.9,0.7]
[1758167767255,4.93111681,4622.0,4621.9,0.7]
[1758167767958,3.95643822,4622.0,4621.9,0.7]
[1758167768159,3.95742549,4622.0,4621.9,0.7]
[1758167768460,3.4268,4622.0,4621.9,0.7]
[1758167770153,8.93005594,4622.0,4620.7,0.3014]
[1758167770359,3.96347859,4620.8,4620.7,0.3014]
[1758167770655,45.73088583,4620.8,4620.7,0.3014]
[1758167771254,45.51314617,4620.8,4620.7,0.3014]
[1758167771460,45.73078917,4620.8,4620.7,0.3014]
[1758167772549,45.688623,4620.8,4620.7,0.3014]
[1758167774254,52.71133736,4620.8,4619.6,0.3014]
[1758167774448,4.71915718,4619.7,4619.6,0.3014]
[1758167774653,5.46882476,4619.7,4619.5,0.1196]
[1758167774849,0.52966758,4619.6,4618.5,0.1196]
[1758167775054,4.71915718,4619.1,4619.0,0.3123]
[1758167775256,4.18347859,4619.1,4619.0,0.3123]
[1758167775457,3.4278,4619.1,4619.0,0.3123]
[1758167775663,4.18347859,4619.1,4619.0,0.3123]
[1758167775962,44.98347859,4619.1,4619.0,0.3123]
[1758167776869,44.98347859,4619.1,4619.0,0.6137]
[1758167777865,44.98347859,4619.1,4619.0,0.421]
[1758167779565,44.98347859,4619.1,4619.0,0.6137]
[1758167780161,44.98347859,4619.1,4619.0,0.1196]
[1758167780463,0.2594,4618.3,4618.2,0.3745]
[1758167780655,4.44287859,4618.3,4618.2,0.3745]
[1758167782157,4.52397859,4618.3,4618.2,0.1818]
[1758167782872,4.52397859,4618.3,4617.5,0.5203]
[1758167782873,0.2594,4617.6,4617.5,0.5203]
[1758167783065,4.52397859,4617.6,4617.5,0.1196]
[1758167783262,4.52397859,4617.6,4617.1,0.3014]
[1758167783464,1.01507859,4617.2,4617.1,0.4941]
[1758167783766,1.31617859,4617.2,4617.1,0.3014]
[1758167785667,1.23507859,4617.2,4617.1,0.4941]
[1758167785872,0.4794,4617.2,4617.1,0.4941]
[1758167786072,1.23507859,4617.2,4617.1,0.4941]
[1758167786276,1.31617859,4617.2,4617.1,0.3014]
[1758167786766,0.0811,4617.1,4615.9,0.4941]
[1758167786968,3.2078,4616.4,4616.2,0.1927]
[1758167787175,3.2078,4616.4,4616.3,0.3014]
[1758167787365,3.4278,4616.4,4616.3,0.3014]
[1758167788172,4.18347859,4616.4,4616.0,0.1196]
[1758167788362,1.51135718,4616.1,4616.0,0.1196]
[1758167788558,0.22,4616.1,4616.0,0.3123]
[1758167788766,0.97567859,4616.1,4616.0,0.5203]
[1758167788964,0.97567859,4616.1,4616.0,0.8217]
[1758167789164,0.75567859,4616.1,4616.0,0.6137]
[1758167789371,0.97567859,4616.1,4616.0,0.421]
[1758167790073,0.97567859,4616.1,4616.0,0.6137]
[1758167792361,3.2078,4616.4,4616.0,0.8217]
[1758167792565,0.97567859,4616.3,4616.2,0.4007]
[1758167792871,0.97567859,4616.3,4616.2,0.7021]
[1758167793066,0.97567859,4616.3,4616.2,0.3014]
[1758167793463,0.97567859,4616.3,4616.2,0.4941]
[1758167793968,1.14963792,4616.3,4616.2,0.4941]
[1758167794769,1.14963792,4616.3,4616.2,0.4007]
[1758167794770,0.92963792,4616.3,4616.2,0.4007]
[1758167794966,1.14963792,4616.3,4616.2,0.7021]
[1758167795469,0.92963792,4616.3,4616.2,0.7021]
[1758167795770,1.14963792,4616.3,4616.2,0.7021]
[1758167796974,1.14963792,4616.3,4616.2,0.4941]
[1758167797272,1.14963792,4616.3,4616.2,0.3014]
[1758167799175,1.69531879,4616.3,4616.2,0.3014]
[1758167800174,1.86709807,4616.3,4616.2,0.3014]
[1758167801865,1.69531879,4616.3,4616.2,0.3014]
[1758167802069,1.47531879,4616.3,4616.2,0.7139]
[1758167802269,1.69531879,4616.3,4616.2,0.7139]
[1758167803974,0.54568087,4616.3,4616.2,0.7139]
[1758167804169,1.69531879,4616.3,4616.2,0.7139]
[1758167805173,0.76568087,4616.3,4616.2,0.7139]
[1758167805375,1.69531879,4616.3,4616.2,0.7139]
[1758167807282,1.47531879,4616.3,4616.2,0.7139]
[1758167807577,1.69531879,4616.3,4616.2,0.7139]
[1758167808877,1.47531879,4616.3,4616.2,0.7139]
[1758167809270,1.69531879,4616.3,4616.2,0.7139]
[1758167810983,1.47531879,4616.3,4616.2,0.7139]
[1758167811185,1.69531879,4616.3,4616.2,0.7139]
[1758167812286,1.91118229,4616.3,4616.2,0.7139]
[1758167812682,1.91118229,4616.3,4616.2,0.5033]
[1758167814685,1.91118229,4616.3,4616.2,0.7139]
[1758167815387,1.69118229,4616.3,4616.2,0.7139]
[1758167815582,1.91118229,4616.3,4616.2,0.7139]
[1758167817987,1.69118229,4616.3,4616.2,0.7139]
[1758167818288,1.91118229,4616.3,4616.2,0.7139]
[1758167820289,1.69118229,4616.3,4616.2,0.7139]
[1758167820587,1.91171468,4616.3,4616.2,0.7139]
[1758167821190,1.69171468,4616.3,4616.2,0.7139]
[1758167821486,1.91171468,4616.3,4616.2,0.7139]
[1758167821688,0.76207676,4616.3,4616.2,0.7139]
[1758167821890,0.98207676,4616.3,4616.2,0.7139]
[1758167822085,0.76207676,4616.3,4616.2,0.7139]
[1758167822485,0.98207676,4616.3,4616.2,0.7139]
[1758167822885,0.76207676,4616.3,4616.2,0.7139]
[1758167823086,0.76207676,4616.3,4616.2,4.7139]
[1758167823288,0.54568087,4616.3,4616.2,4.7139]
[1758167823490,3.4278,4616.9,4616.8,0.7182]
[1758167823683,3.64418266,4616.9,4616.8,0.7182]
[1758167824185,3.4278,4616.9,4616.8,0.7182]
[1758167824782,3.2078,4616.9,4616.8,0.7182]
[1758167828094,1.14963792,4617.0,4616.8,0.4036]
[1758167828295,1.14963792,4617.0,4616.9,0.3184]
[1758167828592,1.14963792,4617.0,4616.9,0.7293]
[1758167833496,0.92963792,4617.0,4616.9,0.7293]
[1758167833696,1.14963792,4617.0,4616.9,0.7293]
[1758167836697,0.92963792,4617.0,4616.9,0.7293]
[1758167837001,0.92963792,4617.3,4617.2,0.7293]
[1758167837196,1.69127337,4617.3,4617.2,0.5297]
[1758167838090,1.69127337,4617.3,4617.2,0.7293]
[1758167838597,1.47127337,4617.3,4617.2,0.7293]
[1758167838805,1.69127337,4617.3,4617.2,0.7293]
[1758167840897,1.69127337,4617.3,4617.2,0.5297]
[1758167841404,1.47127337,4617.3,4617.2,0.5297]
[1758167841605,1.69027337,4617.3,4617.2,0.5297]
[1758167842706,1.69027337,4617.3,4617.2,0.7293]
[1758167842896,1.69027337,4617.3,4617.2,0.5297]
[1758167843099,1.69027337,4617.3,4617.2,0.7293]
[1758167844406,1.47127337,4617.3,4617.2,0.7293]
[1758167844606,1.69027337,4617.3,4617.2,0.7293]
[1758167847206,0.76063545,4617.3,4617.2,0.7293]
[1758167847406,1.69027337,4617.3,4617.2,0.7293]
[1758167849815,0.92963792,4617.3,4617.2,0.7293]
[1758167850012,1.14863792,4617.3,4617.2,0.7293]
[1758167851316,1.66986005,4617.3,4617.2,0.7293]
[1758167852119,0.74022213,4617.3,4617.2,0.7293]
[1758167852415,0.219,4617.3,4617.2,0.7293]
[1758167853119,0.7406022,4617.3,4617.2,0.7293]
[1758167853918,1.49755905,4617.3,4617.2,0.7293]
[1758167855120,1.27855905,4617.3,4617.2,0.7293]
[1758167855310,1.49755905,4617.3,4617.2,0.7293]
[1758167855517,1.49755905,4617.3,4617.1,0.3184]
[1758167855818,0.5216022,4617.2,4617.1,0.3184]
[1758167856418,0.5216022,4617.2,4617.1,0.5221]
[1758167857211,0.75695685,4617.3,4617.1,0.2037]
[1758167857410,0.219,4617.2,4617.1,0.4911]
[1758167858718,0.74075614,4617.2,4617.1,0.4911]
[1758167861518,0.74075614,4617.2,4617.1,0.6829]
[1758167862920,1.49771299,4617.2,4617.1,0.6829]
[1758167865831,4.70551299,4617.2,4617.1,0.6829]
[1758167866631,9.90253965,4617.2,4616.9,0.1775]
[1758167866930,1.5139137,4617.0,4616.1,0.2874]
[1758167867126,0.75695685,4616.2,4616.1,0.4911]
[1758167867433,0.97595685,4616.2,4616.1,0.4911]
[1758167868234,0.97595685,4616.2,4616.1,0.6829]
[1758167871233,0.97595685,4616.2,4616.1,0.2874]
[1758167872838,0.97595685,4616.2,4616.1,0.4911]
[1758167873439,0.97595685,4616.2,4616.1,0.6829]
[1758167875842,0.75695685,4616.2,4616.1,0.6829]
[1758167876537,0.97595685,4616.2,4616.1,0.6829]
[1758167876938,0.75695685,4616.2,4616.1,0.6829]
[1758167877138,0.97595685,4616.2,4616.1,0.6829]
[1758167878642,3.2078,4616.3,4616.2,0.2874]
[1758167878844,4.18375685,4616.3,4616.2,0.6976]
[1758167879335,3.2078,4616.3,4616.2,0.6976]
[1758167879538,3.2078,4617.6,4617.5,0.6368]
[1758167879744,4.18375685,4617.6,4617.5,0.8464]
[1758167880737,3.96475685,4617.6,4617.5,0.8464]
[1758167881041,4.18375685,4617.6,4617.5,0.8464]
[1758167882042,3.96475685,4617.6,4617.5,0.8464]
[1758167882242,4.18375685,4617.6,4617.5,0.8464]
[1758167882842,3.96475685,4617.6,4617.5,0.8464]
[1758167883142,0.97595685,4617.6,4617.5,0.8464]
[1758167883640,0.219,4617.6,4617.5,0.8464]
[1758167883846,0.75695685,4617.6,4617.5,0.8464]
[1758167884343,0.97595685,4617.6,4617.5,0.8464]
[1758167885341,0.75695685,4617.6,4617.5,0.8464]
[1758167885534,0.97595685,4617.6,4617.5,0.8464]
[1758167885733,0.219,4617.6,4617.5,0.8464]
[1758167886337,0.97595685,4617.6,4617.5,0.8464]
[1758167886743,3.2078,4618.1,4617.5,0.5314]
[1758167886938,3.2078,4618.1,4618.0,0.8427]
[1758167887139,3.4268,4618.1,4618.0,0.8427]
[1758167887340,3.2078,4618.1,4618.0,0.8427]
[1758167887541,3.4268,4618.1,4618.0,0.8427]
[1758167887951,4.18375685,4618.1,4618.0,0.8427]
[1758167888245,0.97595685,4618.1,4618.0,0.8427]
[1758167888848,0.97595685,4618.1,4618.0,0.5457]
[1758167889044,0.97595685,4618.1,4618.0,0.8427]
[1758167889546,0.75695685,4618.1,4618.0,0.8427]
[1758167889739,3.2078,4618.6,4618.3,0.2085]
[1758167890045,0.75695685,4618.4,4618.3,0.4196]
[1758167890440,0.75695685,4618.4,4618.3,0.7166]
[1758167890840,0.97595685,4618.4,4618.3,0.7166]
[1758167891847,0.219,4618.4,4618.3,0.7166]
[1758167892149,3.2078,4618.6,4618.5,0.1261]
[1758167892346,3.2078,4618.6,4618.5,0.8427]
[1758167892541,3.4268,4618.6,4618.5,0.8427]
[1758167892741,3.2078,4618.6,4618.5,0.8427]
[1758167895148,0.75695685,4618.7,4618.6,0.7166]
[1758167896346,0.75695685,4619.1,4619.0,0.1261]
[1758167896543,3.2078,4619.2,4619.0,1.30265685]
[1758167896753,3.2078,4619.2,4619.1,0.7166]
[1758167898244,3.96475685,4619.2,4619.1,0.7166]
[1758167898949,3.96475685,4619.2,4619.1,0.297]
[1758167900652,3.96475685,4619.2,4619.1,0.5055]
[1758167901055,3.4268,4619.2,4619.1,0.7166]
[1758167901544,0.219,4619.2,4619.1,0.7166]
[1758167902648,0.97595685,4619.2,4619.1,0.7166]
[1758167904446,0.75695685,4619.2,4619.1,0.7166]
[1758167905756,0.75695685,4619.4,4619.1,0.4196]
[1758167905958,0.219,4619.3,4619.2,0.7166]
[1758167907157,0.97595685,4619.4,4619.3,0.7166]
[1758167907351,0.75695685,4619.4,4619.3,0.7166]
[1758167907550,0.97595685,4619.4,4619.3,0.7166]
[1758167909255,0.75695685,4619.4,4619.3,0.7166]
[1758167909452,0.97595685,4619.4,4619.3,0.7166]
[1758167909650,0.75695685,4619.4,4619.3,0.7166]
[1758167909851,0.97595685,4619.4,4619.3,0.7166]
[1758167911453,1.7329137,4619.4,4619.2,0.297]
[1758167911659,3.2078,4619.3,4619.0,0.1261]
[1758167911956,0.75695685,4619.1,4619.0,0.3346]
[1758167912153,0.97595685,4619.1,4619.0,0.3346]
[1758167912354,0.97595685,4619.1,4619.0,0.6316]
[1758167912954,0.97595685,4619.1,4619.0,0.4231]
[1758167914862,0.97595685,4619.1,4619.0,0.6316]
[1758167915462,0.75695685,4619.1,4619.0,0.6316]
[1758167915663,3.96475685,4619.3,4619.1,0.2902]
[1758167915858,3.96475685,4619.3,4619.1,0.6978]
[1758167915859,0.219,4619.2,4619.1,0.6978]
[1758167921475,0.219,4619.2,4619.1,0.4924]
[1758167921865,0.219,4619.2,4619.1,0.2902]
[1758167922070,0.219,4619.2,4619.0,0.1162]
[1758167922071,1.18455179,4619.2,4619.0,0.1162]
[1758167922275,1.89376164,4619.1,4619.0,0.4064]
[1758167922677,1.67727164,4619.1,4619.0,0.4064]
[1758167924979,1.67719368,4619.1,4619.0,0.4064]
[1758167926178,1.67719368,4619.1,4619.0,0.814]
[1758167926379,0.96898383,4619.1,4619.0,0.814]
[1758167927381,0.74447797,4619.1,4619.0,0.814]
[1758167927580,0.22,4619.1,4619.0,0.814]
[1758167928083,0.74494272,4619.1,4619.0,0.814]
[1758167932782,0.52494272,4619.1,4619.0,0.814]
[1758167932981,0.74494272,4619.1,4619.0,0.814]
[1758167939185,0.97085803,4619.1,4619.0,0.814]
[1758167939486,0.74494272,4619.1,4619.0,0.814]
[1758167939684,0.97085784,4619.1,4619.0,0.814]
[1758167941185,0.75085784,4619.1,4619.0,0.814]
[1758167941386,0.96985784,4619.1,4619.0,0.814]
[1758167943289,0.96985784,4619.1,4619.0,0.4064]
[1758167944889,0.96985784,4619.1,4619.0,0.6182]
[1758167946487,0.96985784,4619.1,4619.0,0.4064]
[1758167947092,0.2532,4618.1,4618.0,0.4897]
[1758167947285,0.4722,4618.1,4618.0,0.4897]
[1758167947680,0.4722,4618.1,4618.0,0.7808]
[1758167948992,0.219,4618.1,4618.0,0.7808]
[1758167950180,3.37696327,4618.8,4618.1,0.2911]
[1758167950384,0.878419,4618.7,4618.6,0.6804]
[1758167950580,1.097419,4618.7,4618.6,0.6804]
[1758167951094,1.224019,4618.7,4618.6,0.6804]
[1758167951687,2.15222885,4618.7,4618.6,0.6804]
[1758167952391,0.970819,4618.7,4618.6,0.6804]
[1758167952694,1.097419,4618.7,4618.6,0.6804]
[1758167953293,0.751819,4618.7,4618.6,0.6804]
[1758167953494,0.970819,4618.7,4618.6,0.6804]
[1758167954392,0.751819,4618.7,4618.6,0.6804]
[1758167954587,0.970819,4618.7,4618.6,0.6804]
[1758167956293,0.97073854,4618.7,4618.6,0.6804]
[1758167957297,0.52605256,4618.7,4618.6,0.6804]
[1758167957504,0.75171392,4618.7,4618.6,0.6804]
[1758167957702,0.219,4618.7,4618.6,0.6804]
[1758167958689,3.2078,4618.8,4618.6,0.6804]
[1758167958899,3.3344,4618.8,4618.7,0.6804]
[1758167959098,3.5534,4618.8,4618.7,0.6804]
[1758167959302,3.68,4618.8,4618.7,0.6804]
[1758167962297,4.20599522,4618.8,4618.7,0.6804]
[1758167963001,5.21330507,4618.8,4618.7,0.2911]
[1758167963206,5.44187824,4618.8,4618.7,0.2911]
[1758167963403,4.43456839,4618.8,4618.7,0.6804]
[1758167965403,4.51366839,4618.8,4618.7,0.2911]
[1758167965604,0.2532,4618.6,4618.5,0.2911]
[1758167965805,1.70808302,4618.6,4618.5,0.2911]
[1758167966002,2.23407824,4618.6,4618.5,0.2911]
[1758167966301,2.23407824,4618.6,4618.0,0.1004]
[1758167966506,0.3323,4618.2,4618.1,0.2911]
[1758167966708,1.30586839,4618.2,4618.1,0.2911]
[1758167968107,2.23407824,4618.2,4618.1,0.2911]
[1758167969207,2.00550507,4618.2,4618.1,0.2911]
[1758167972098,0.2532,4618.0,4617.9,0.3011]
[1758167972302,1.07729522,4618.0,4617.9,0.3011]
[1758167972513,1.07729522,4618.0,4617.9,0.2911]
[1758167975909,1.07729522,4618.0,4617.8,0.0216]